bitfinex-derivatives/quotes_BTCF0:USTF0_20250718
["timestamp","ask_amount","ask_price","bid_price","bid_amount"]
[1752810821675,0.87096886,120340.0,120330.0,0.8497152]
[1752810821881,0.87096886,120340.0,120330.0,1.40915314]
[1752810822482,0.90294886,120340.0,120330.0,1.12943417]
[1752810822981,0.90294886,120340.0,120330.0,1.09832419]
[1752810823580,0.90294886,120340.0,120330.0,1.45912419]
[1752810823879,0.90294886,120340.0,120330.0,1.09832419]
[1752810825082,0.32298886,120340.0,120330.0,1.09832419]
[1752810825283,0.93384886,120340.0,120330.0,1.09832419]
[1752810825781,0.93384886,120340.0,120330.0,0.8497152]
[1752810825982,0.93384886,120340.0,120330.0,1.09832419]
[1752810826177,0.35348886,120340.0,120330.0,1.09832419]
[1752810826382,1.34161886,120340.0,120330.0,0.93223899]
[1752810826583,1.37857886,120340.0,120330.0,1.09832419]
[1752810826778,1.37857886,120340.0,120330.0,0.8497152]
[1752810826983,0.79621886,120340.0,120330.0,0.8497152]
[1752810827283,1.37849886,120340.0,120330.0,0.8497152]
[1752810827483,1.37849886,120340.0,120330.0,0.68363]
[1752810827677,1.37849886,120340.0,120330.0,0.8497152]
[1752810827980,1.37849886,120340.0,120330.0,0.6113]
[1752810828484,1.38123886,120340.0,120330.0,0.6113]
[1752810829183,1.38123886,120340.0,120330.0,0.65225]
[1752810829385,1.62984785,120340.0,120330.0,0.65125]
[1752810829987,1.62984785,120340.0,120330.0,0.8173352]
[1752810830186,1.62984785,120340.0,120330.0,0.8509952]
[1752810830986,1.38123886,120340.0,120330.0,0.8509952]
[1752810834788,1.37849886,120340.0,120330.0,0.8509952]
[1752810836989,0.80060886,120340.0,120330.0,0.8509952]
[1752810837190,1.38292886,120340.0,120330.0,0.8509952]
[1752810838993,0.80060886,120340.0,120330.0,0.8509952]
[1752810839294,0.98488886,120340.0,120330.0,1.09960419]
[1752810839495,0.35787886,120340.0,120330.0,1.09960419]
[1752810839799,0.94003886,120340.0,120330.0,1.09960419]
[1752810840193,0.94019886,120340.0,120330.0,1.09960419]
[1752810840393,0.94023886,120340.0,120330.0,1.09960419]
[1752810840694,0.87332886,120340.0,120330.0,1.46040419]
[1752810840895,0.12493746,120340.0,120330.0,1.46040419]
[1752810841096,1.33362532,120350.0,120340.0,0.3638814]
[1752810841395,1.87510212,120350.0,120340.0,0.97329039]
[1752810841597,2.04115972,120350.0,120340.0,0.97329039]
[1752810841792,1.33361592,120350.0,120340.0,0.97329039]
[1752810841986,1.91633592,120350.0,120340.0,1.00309632]
[1752810842185,1.91645592,120350.0,120340.0,1.00309632]
[1752810842593,1.91645592,120350.0,120340.0,1.00409632]
[1752810843094,1.91645592,120350.0,120340.0,1.50409632]
[1752810843394,1.91633592,120350.0,120340.0,1.47429039]
[1752810843594,1.91633592,120350.0,120340.0,1.54876188]
[1752810843897,1.91633592,120350.0,120340.0,1.54976188]
[1752810844096,1.75027832,120350.0,120340.0,1.51995595]
[1752810844295,1.75027832,120350.0,120340.0,1.54969114]
[1752810844799,0.60095832,120350.0,120340.0,1.51995595]
[1752810845000,0.01823832,120350.0,120340.0,1.51995595]
[1752810845198,0.60091832,120350.0,120340.0,1.51995595]
[1752810845501,0.01823832,120350.0,120340.0,1.51995595]
[1752810845799,0.3223718,120370.0,120360.0,0.3638538]
[1752810845999,0.9049318,120370.0,120360.0,0.61246279]
[1752810846199,1.02967629,120370.0,120360.0,0.61246279]
[1752810846400,1.07946629,120370.0,120360.0,0.61246279]
[1752810847698,1.08046629,120370.0,120360.0,1.11246279]
[1752810848199,0.50333629,120370.0,120360.0,1.11246279]
[1752810848398,1.08577629,120370.0,120360.0,0.8638538]
[1752810848599,0.54202629,120370.0,120360.0,1.11246279]
[1752810848798,1.12418629,120370.0,120360.0,1.11246279]
[1752810849400,1.12318629,120370.0,120360.0,1.11246279]
[1752810850301,1.48398629,120370.0,120360.0,0.8638538]
[1752810850500,1.73425528,120370.0,120360.0,0.8638538]
[1752810850698,1.73425528,120370.0,120360.0,0.69781]
[1752810850899,1.73445528,120370.0,120360.0,0.66415]
[1752810851200,1.73445528,120370.0,120360.0,0.62073]
[1752810852701,1.73445528,120370.0,120360.0,0.69781]
[1752810853202,1.48584629,120370.0,120360.0,0.8638538]
[1752810853703,1.48584629,120370.0,120360.0,0.69781]
[1752810854812,1.48564629,120370.0,120360.0,0.69781]
[1752810855713,1.73425528,120370.0,120360.0,0.69781]
[1752810856007,1.15217528,120370.0,120360.0,0.66415]
[1752810856213,1.73401528,120370.0,120360.0,0.66415]
[1752810856811,1.73401528,120370.0,120360.0,0.62073]
[1752810857813,1.48540629,120370.0,120360.0,0.62073]
[1752810858008,1.73401528,120370.0,120360.0,0.62073]
[1752810858209,1.73401528,120370.0,120360.0,0.6539]
[1752810859816,1.73401528,120370.0,120360.0,0.62073]
[1752810861013,1.73401528,120370.0,120360.0,0.5]
[1752810861014,1.15217528,120370.0,120360.0,0.5]
[1752810861310,1.51297528,120370.0,120360.0,0.5]
[1752810861512,2.09625528,120370.0,120360.0,0.5]
[1752810861912,0.1660438,120360.0,120350.0,0.11544]
[1752810862112,0.93098279,120360.0,120350.0,0.19141]
[1752810862307,1.05526645,120360.0,120350.0,0.19141]
[1752810862515,1.63854645,120360.0,120350.0,0.19141]
[1752810862916,1.38993746,120360.0,120350.0,0.19141]
[1752810863613,1.38791746,120360.0,120350.0,0.19141]
[1752810863810,1.02735746,120360.0,120350.0,0.8574676]
[1752810864010,1.02735746,120360.0,120350.0,0.69141]
[1752810864216,1.04588574,120360.0,120350.0,0.69141]
[1752810864415,1.40684574,120360.0,120350.0,0.69141]
[1752810864619,1.04604574,120360.0,120350.0,0.69141]
[1752810864819,1.40684574,120360.0,120350.0,0.69141]
[1752810865120,1.40688574,120360.0,120350.0,0.8574676]
[1752810865321,1.40688574,120360.0,120350.0,1.10607659]
[1752810865815,1.04608574,120360.0,120350.0,0.94001899]
[1752810866020,1.40688574,120360.0,120350.0,0.94001899]
[1752810866819,1.04608574,120360.0,120350.0,1.10607659]
[1752810867021,1.40688574,120360.0,120350.0,0.8574676]
[1752810867215,1.40688574,120360.0,120350.0,0.69141]
[1752810867526,0.82316574,120360.0,120350.0,0.69141]
[1752810868018,1.40700574,120360.0,120350.0,0.69141]
[1752810869223,1.40700574,120360.0,120350.0,0.8574676]
[1752810869423,0.82316574,120360.0,120350.0,0.69141]
[1752810869624,1.40692574,120360.0,120350.0,0.69141]
[1752810870125,1.04612574,120360.0,120350.0,0.69141]
[1752810870326,1.40692574,120360.0,120350.0,0.69141]
[1752810871825,1.40692574,120360.0,120350.0,0.8574676]
[1752810872024,1.40636574,120360.0,120350.0,0.8574676]
[1752810872825,1.04556574,120360.0,120350.0,0.8574676]
[1752810873525,1.40636574,120360.0,120350.0,0.69141]
[1752810873724,1.04556574,120360.0,120350.0,0.8574676]
[1752810874027,1.40636574,120360.0,120350.0,0.8574676]
[1752810874227,1.04556574,120360.0,120350.0,0.8574676]
[1752810874626,1.40608574,120360.0,120350.0,0.8574676]
[1752810874927,1.04528574,120360.0,120350.0,0.8574676]
[1752810875231,1.40608574,120360.0,120350.0,0.8574676]
[1752810875428,0.82316574,120360.0,120350.0,0.69141]
[1752810875722,1.40596574,120360.0,120350.0,0.8574676]
[1752810875928,0.82316574,120360.0,120350.0,0.8574676]
[1752810876226,1.40592574,120360.0,120350.0,0.8574676]
[1752810879226,0.82316574,120360.0,120350.0,0.8574676]
[1752810879529,1.40548574,120360.0,120350.0,0.8574676]
[1752810880433,1.04468574,120360.0,120350.0,0.8574676]
[1752810880732,1.40548574,120360.0,120350.0,0.8574676]
[1752810881631,1.40548574,120360.0,120350.0,0.69141]
[1752810881833,1.40750574,120360.0,120350.0,0.69141]
[1752810882133,1.65667473,120360.0,120350.0,0.69141]
[1752810882634,1.65667473,120360.0,120350.0,0.8574676]
[1752810882829,1.40604574,120360.0,120350.0,0.8574676]
[1752810883735,1.40806574,120360.0,120350.0,0.8574676]
[1752810884234,1.40604574,120360.0,120350.0,0.8574676]
[1752810885033,0.82316574,120360.0,120350.0,0.69141]
[1752810885235,1.40894574,120360.0,120350.0,0.69141]
[1752810885931,1.40894574,120360.0,120350.0,0.8574676]
[1752810886336,1.40894574,120360.0,120350.0,0.69141]
[1752810887937,1.40894574,120360.0,120350.0,0.8574676]
[1752810888130,1.40894574,120360.0,120350.0,0.69141]
[1752810890536,1.07379473,120360.0,120350.0,0.62548]
[1752810890736,1.07379473,120360.0,120350.0,0.56841]
[1752810890737,1.65767473,120360.0,120350.0,0.56841]
[1752810890937,1.40906574,120360.0,120350.0,0.56841]
[1752810891238,1.96844872,120360.0,120350.0,0.56841]
[1752810891438,1.40906574,120360.0,120350.0,0.56841]
[1752810891639,1.96844872,120360.0,120350.0,0.56841]
[1752810892339,1.68875723,120360.0,120350.0,0.56841]
[1752810892939,1.96844872,120360.0,120350.0,0.56841]
[1752810895144,1.65768544,120360.0,120350.0,0.56841]
[1752810896040,1.65768544,120360.0,120350.0,0.5]
[1752810896541,1.32242514,120360.0,120350.0,0.5]
[1752810896844,1.65652544,120360.0,120350.0,0.5]
[1752810897540,0.3190376,120350.0,120340.0,0.11188]
[1752810897732,0.9284573,120350.0,120340.0,0.11188]
[1752810898041,1.05377992,120350.0,120340.0,0.06511]
[1752810898337,1.05377992,120350.0,120340.0,0.56511]
[1752810898744,1.05377992,120350.0,120340.0,0.61188]
[1752810899642,1.63629992,120350.0,120340.0,0.61188]
[1752810899942,1.63629992,120350.0,120340.0,0.11188]
[1752810900141,1.63605992,120350.0,120340.0,0.11188]
[1752810900837,1.63605992,120350.0,120340.0,0.06511]
[1752810901944,1.63605992,120350.0,120340.0,0.11188]
[1752810902535,1.63605992,120350.0,120340.0,0.15257]
[1752810903240,1.63605992,120350.0,120340.0,0.18406]
[1752810904144,1.38613022,120350.0,120340.0,0.3501314]
[1752810905047,1.38613022,120350.0,120340.0,0.18406]
[1752810905248,1.38613022,120350.0,120340.0,0.3501314]
[1752810905448,1.38613022,120350.0,120340.0,0.18406]
[1752810909349,1.38744022,120350.0,120340.0,0.18406]
[1752810910349,0.80516022,120350.0,120340.0,0.06511]
[1752810910545,0.2299214,120340.0,120330.0,0.18406]
[1752810910852,0.80477076,120340.0,120330.0,0.18406]
[1752810911653,0.80477076,120340.0,120330.0,0.18506]
[1752810912153,0.80477076,120340.0,120330.0,0.68506]
[1752810912355,0.80346076,120340.0,120330.0,0.68506]
[1752810912653,0.44266076,120340.0,120330.0,0.68506]
[1752810912853,0.44266076,120340.0,120330.0,0.8511452]
[1752810913050,1.02354076,120340.0,120330.0,0.8511452]
[1752810914654,0.98485076,120340.0,120330.0,1.0997649]
[1752810915055,0.98485076,120340.0,120330.0,1.1007649]
[1752810916960,0.98485076,120340.0,120330.0,1.13185697]
[1752810917154,1.26456253,120340.0,120330.0,1.13185697]
[1752810917658,1.30325253,120340.0,120330.0,1.13185697]
[1752810918058,1.02354076,120340.0,120330.0,1.13185697]
[1752810918259,1.30325253,120340.0,120330.0,0.8521452]
[1752810918565,1.30265253,120340.0,120330.0,1.13185697]
[1752810921059,1.30265253,120340.0,120330.0,1.16157758]
[1752810921559,1.08378253,120340.0,120330.0,0.71578061]
[1752810921763,1.66402253,120340.0,120330.0,0.68606]
[1752810922361,1.38431076,120340.0,120330.0,0.68606]
[1752810922560,1.66402253,120340.0,120330.0,0.68606]
[1752810923161,1.66402253,120340.0,120330.0,0.68506]
[1752810924167,1.66402253,120340.0,120330.0,0.501]
[1752810924466,1.66386253,120340.0,120330.0,0.5]
[1752810924661,1.9435743,120340.0,120330.0,0.5]
[1752810924858,1.3634943,120340.0,120330.0,0.5]
[1752810925062,1.9434943,120340.0,120330.0,0.41156]
[1752810925260,0.166099,120320.0,120310.0,0.18867617]
[1752810925458,0.80661077,120320.0,120310.0,0.14401061]
[1752810925661,1.51169607,120320.0,120310.0,0.17735]
[1752810925859,1.51169607,120320.0,120310.0,0.18731]
[1752810926374,1.51169607,120320.0,120310.0,0.68731]
[1752810926674,0.93145607,120320.0,120310.0,0.68731]
[1752810926875,0.6517443,120320.0,120310.0,0.68731]
[1752810927069,1.48058532,120320.0,120310.0,0.68731]
[1752810927470,0.90050532,120320.0,120310.0,0.68731]
[1752810927771,0.90050532,120320.0,120310.0,0.8534228]
[1752810927970,1.24017612,120320.0,120310.0,0.87676619]
[1752810928674,1.24017612,120320.0,120310.0,0.87776619]
[1752810928972,1.24013612,120320.0,120310.0,0.87776619]
[1752810929174,1.24013612,120320.0,120310.0,0.8554228]
[1752810929474,1.24013612,120320.0,120310.0,0.87776619]
[1752810929678,0.66025612,120320.0,120310.0,0.87776619]
[1752810929975,1.24013612,120320.0,120310.0,0.71165339]
[1752810930172,1.24013612,120320.0,120310.0,0.8554228]
[1752810930375,1.24013612,120320.0,120310.0,0.87776619]
[1752810931275,0.66025612,120320.0,120310.0,0.87776619]
[1752810931478,1.24009612,120320.0,120310.0,0.87776619]
[1752810933179,0.66025612,120320.0,120310.0,0.87776619]
[1752810933580,1.23989612,120320.0,120310.0,0.8554228]
[1752810933779,1.23989612,120320.0,120310.0,0.68931]
[1752810934279,0.66025612,120320.0,120310.0,0.8554228]
[1752810934675,1.23985612,120320.0,120310.0,0.8554228]
[1752810935581,0.66025612,120320.0,120310.0,1.10418382]
[1752810935783,1.23985612,120320.0,120310.0,1.10418382]
[1752810936278,0.66025612,120320.0,120310.0,1.10418382]
[1752810936486,1.23969612,120320.0,120310.0,1.10418382]
[1752810937487,0.87889612,120320.0,120310.0,1.10418382]
[1752810941983,0.29945612,120320.0,120310.0,0.8554228]
[1752810942180,1.23881612,120320.0,120310.0,0.68931]
[1752810942684,1.23881612,120320.0,120310.0,0.8554228]
[1752810943585,1.23881612,120320.0,120310.0,0.87776619]
[1752810944283,0.87801612,120320.0,120310.0,0.87776619]
[1752810945378,1.23881612,120320.0,120310.0,0.87776619]
[1752810945584,0.87801612,120320.0,120310.0,0.87776619]
[1752810945885,1.23881612,120320.0,120310.0,0.87776619]
[1752810947889,0.87801612,120320.0,120310.0,1.12652721]
[1752810948182,0.29945612,120320.0,120310.0,0.87776619]
[1752810948387,0.87789612,120320.0,120310.0,0.87776619]
[1752810948887,0.87789612,120320.0,120310.0,0.9074868]
[1752810949186,0.29945612,120320.0,120310.0,0.9074868]
[1752810949387,0.87753612,120320.0,120310.0,0.9074868]
[1752810951289,0.17461082,120320.0,120310.0,1.49470443]
[1752810951490,0.75245082,120320.0,120310.0,1.49470443]
[1752810951891,0.75245082,120320.0,120310.0,1.53936999]
[1752810952689,0.75245082,120320.0,120310.0,1.17856999]
[1752810953584,0.75245082,120320.0,120310.0,1.53936999]
[1752810954192,0.75245082,120320.0,120310.0,1.17856999]
[1752810954494,0.17461082,120320.0,120310.0,1.14884938]
[1752810954794,0.75213082,120320.0,120310.0,1.50964938]
[1752810955190,0.75213082,120320.0,120310.0,1.14884938]
[1752810955590,0.75213082,120320.0,120310.0,1.50964938]
[1752810956294,0.17461082,120320.0,120310.0,1.50964938]
[1752810956494,0.75189082,120320.0,120310.0,1.50964938]
[1752810957095,0.75189082,120320.0,120310.0,1.26088836]
[1752810957398,0.75189082,120320.0,120310.0,1.50964938]
[1752810959893,0.30887351,120330.0,120310.0,1.50964938]
[1752810960191,0.39213269,120330.0,120320.0,0.65485015]
[1752810960397,0.39213269,120330.0,120320.0,0.99329581]
[1752810960398,0.96893269,120330.0,120320.0,0.99329581]
[1752810961092,0.96893269,120330.0,120320.0,0.67716137]
[1752810961292,0.97749478,120330.0,120320.0,0.67716137]
[1752810961596,0.97788478,120330.0,120320.0,1.17716137]
[1752810961894,0.97788478,120330.0,120320.0,1.13249581]
[1752810962395,0.97788478,120330.0,120320.0,1.49329581]
[1752810962595,0.97788478,120330.0,120320.0,1.53796137]
[1752810962897,0.97888478,120330.0,120320.0,1.53796137]
[1752810963096,0.97888478,120330.0,120320.0,1.49329581]
[1752810963298,0.40208478,120330.0,120320.0,1.49329581]
[1752810963797,0.97888478,120330.0,120320.0,1.53796137]
[1752810964398,0.40208478,120330.0,120320.0,1.53796137]
[1752810964599,0.97888478,120330.0,120320.0,1.53796137]
[1752810964899,0.97888478,120330.0,120320.0,1.28920035]
[1752810965089,0.97888478,120330.0,120320.0,1.53796137]
[1752810966894,1.25864304,120330.0,120320.0,1.56895861]
[1752810967700,1.25864304,120330.0,120320.0,1.53915282]
[1752810967900,1.25864304,120330.0,120320.0,1.49448726]
[1752810968496,1.25864304,120330.0,120320.0,1.2445138]
[1752810968799,1.25864304,120330.0,120320.0,1.52427206]
[1752810971001,1.25864304,120330.0,120320.0,1.2445138]
[1752810971200,1.25864304,120330.0,120320.0,1.52427206]
[1752810971695,0.97888478,120330.0,120320.0,1.56894926]
[1752810971901,0.97884478,120330.0,120320.0,1.56894926]
[1752810973297,0.97884478,120330.0,120320.0,1.52427206]
[1752810973698,0.40208478,120330.0,120320.0,1.51682315]
[1752810974002,0.97884478,120330.0,120320.0,1.15602315]
[1752810975503,1.25856304,120330.0,120320.0,1.15602315]
[1752810975903,1.61936304,120330.0,120320.0,1.15602315]
[1752810976305,1.25856304,120330.0,120320.0,1.15602315]
[1752810977104,1.25890304,120330.0,120320.0,1.15602315]
[1752810977305,1.25897304,120330.0,120320.0,1.15602315]
[1752810977806,0.97921478,120330.0,120320.0,1.15602315]
[1752810978006,1.25897304,120330.0,120320.0,1.15602315]
[1752810978207,1.25890304,120330.0,120320.0,1.15602315]
[1752810978704,1.61970304,120330.0,120320.0,1.15602315]
[1752810979611,1.25890304,120330.0,120320.0,1.15602315]
[1752810979910,1.25890304,120330.0,120320.0,1.1560365]
[1752810980310,1.25856304,120330.0,120320.0,1.1560365]
[1752810980712,1.61936304,120330.0,120320.0,1.1560365]
[1752810981813,1.25856304,120330.0,120320.0,1.1560365]
[1752810982314,1.61936304,120330.0,120320.0,1.1560365]
[1752810983610,1.61936304,120330.0,120320.0,1.16347206]
[1752810984105,1.25856304,120330.0,120320.0,1.16347206]
[1752810985110,1.61936304,120330.0,120320.0,1.16347206]
[1752810985810,0.74467817,120330.0,120320.0,1.16347206]
[1752810986015,1.60111643,120330.0,120320.0,1.16347206]
[1752810986916,1.02443643,120330.0,120320.0,1.16347206]
[1752810987116,1.60111643,120330.0,120320.0,1.16347206]
[1752810987417,1.60111643,120330.0,120320.0,0.8837138]
[1752810987621,1.60111643,120330.0,120320.0,1.16347206]
[1752810987814,1.24031643,120330.0,120320.0,1.16347206]
[1752810988014,1.24031643,120330.0,120320.0,1.18583547]
[1752810988315,1.60111643,120330.0,120320.0,1.18583547]
[1752810988516,1.60111643,120330.0,120320.0,1.16347206]
[1752810989218,1.60111643,120330.0,120320.0,0.8837138]
[1752810989712,1.60111643,120330.0,120320.0,1.18583438]
[1752810990918,0.66363643,120330.0,120320.0,1.18583438]
[1752810991118,1.24027643,120330.0,120320.0,1.16347206]
[1752810991618,0.66363643,120330.0,120320.0,1.16347206]
[1752810991921,0.66363643,120330.0,120320.0,1.18583384]
[1752810992115,1.24027643,120330.0,120320.0,1.18583384]
[1752810992718,1.60107643,120330.0,120320.0,1.18583384]
[1752810993919,1.24027643,120330.0,120320.0,1.18583384]
[1752810994615,1.24027643,120330.0,120320.0,1.16347206]
[1752810995021,1.24027643,120330.0,120320.0,0.8837138]
[1752810995322,1.24027643,120330.0,120320.0,1.16347206]
[1752810998019,1.23999643,120330.0,120320.0,1.16347206]
[1752810998220,0.38321817,120330.0,120320.0,1.52427206]
[1752810998421,0.95977817,120330.0,120320.0,1.56894926]
[1752810998822,0.38321817,120330.0,120320.0,1.56894926]
[1752810999024,0.95977817,120330.0,120320.0,1.56894926]
[1752810999325,0.95877817,120330.0,120320.0,1.56894926]
[1752811000126,0.95877817,120330.0,120320.0,1.290191]
[1752811000426,1.23853643,120330.0,120320.0,1.56994926]
[1752811000826,1.23853643,120330.0,120320.0,1.290191]
[1752811001026,1.23853643,120330.0,120320.0,1.56994926]
[1752811002731,0.38221817,120330.0,120320.0,1.56994926]
[1752811003033,1.23849643,120330.0,120320.0,1.56994926]
[1752811003330,0.66197643,120330.0,120320.0,1.56994926]
[1752811003531,1.23849643,120330.0,120320.0,1.56994926]
[1752811005333,0.95873817,120330.0,120320.0,1.56994926]
[1752811006635,0.91717467,120330.0,120320.0,1.56994926]
[1752811006829,0.91717467,120330.0,120320.0,1.54016446]
[1752811007934,0.87565257,120330.0,120320.0,1.54016446]
[1752811016251,0.29917257,120330.0,120320.0,1.54016446]
[1752811016450,0.87553257,120330.0,120320.0,1.54016446]
[1752811023759,0.87553257,120330.0,120320.0,1.52529669]
[1752811027049,0.87553257,120330.0,120320.0,1.24553843]
[1752811027357,0.87541257,120330.0,120320.0,1.52529669]
[1752811033657,0.87541257,120330.0,120320.0,1.54016446]
[1752811049170,0.87541257,120330.0,120320.0,1.2604062]
[1752811049471,0.87541257,120330.0,120320.0,1.54016446]
[1752811050875,0.87541257,120330.0,120320.0,1.17936446]
[1752811051171,0.87541257,120330.0,120320.0,1.54016446]
[1752811052377,0.87541257,120330.0,120320.0,1.2604062]
[1752811052571,0.87541257,120330.0,120320.0,1.54016446]
[1752811056878,0.87541257,120330.0,120320.0,1.17936446]
[1752811057274,0.87541257,120330.0,120320.0,1.54016446]
[1752811058578,1.14932,120350.0,120340.0,0.1660714]
[1752811058783,1.3153776,120350.0,120340.0,1.00670623]
[1752811058983,1.43973438,120350.0,120340.0,1.05147609]
[1752811059183,2.01553438,120350.0,120340.0,1.05147609]
[1752811059479,2.01553438,120350.0,120340.0,1.50670623]
[1752811059779,2.01753438,120350.0,120340.0,1.50670623]
[1752811059980,2.01853438,120350.0,120340.0,1.50670623]
[1752811060381,2.02713768,120350.0,120340.0,1.50670623]
[1752811060880,2.02713768,120350.0,120340.0,1.55147609]
[1752811061082,2.02613768,120350.0,120340.0,1.52162952]
[1752811061377,2.02613768,120350.0,120340.0,1.55143839]
[1752811061583,2.02613768,120350.0,120340.0,1.55243839]
[1752811061783,1.45033768,120350.0,120340.0,1.55243839]
[1752811062082,2.02609768,120350.0,120340.0,1.55243839]
[1752811062282,2.02409768,120350.0,120340.0,1.55243839]
[1752811062582,2.02509768,120350.0,120340.0,1.55243839]
[1752811063582,2.02509768,120350.0,120340.0,1.50020947]
[1752811063984,2.02409768,120350.0,120340.0,1.50020947]
[1752811066883,1.44833768,120350.0,120340.0,1.50020947]
[1752811067083,2.02401768,120350.0,120340.0,1.50020947]
[1752811071286,1.44833768,120350.0,120340.0,1.50020947]
[1752811071486,2.02393768,120350.0,120340.0,1.50020947]
[1752811073585,2.02393768,120350.0,120340.0,1.50766853]
[1752811074185,1.44833768,120350.0,120340.0,1.50766853]
[1752811074488,2.02385768,120350.0,120340.0,1.50766853]
[1752811074986,2.02385768,120350.0,120340.0,1.22791027]
[1752811075185,2.02385768,120350.0,120340.0,1.50766853]
[1752811075689,1.44833768,120350.0,120340.0,1.50766853]
[1752811075889,2.02385768,120350.0,120340.0,1.50766853]
[1752811076287,1.28228008,120350.0,120340.0,1.50766853]
[1752811076487,0.7501409,120350.0,120340.0,1.50766853]
[1752811076688,0.7501409,120350.0,120340.0,1.55243839]
[1752811076889,0.7501409,120350.0,120340.0,1.27268013]
[1752811077090,0.7501409,120350.0,120340.0,1.55243839]
[1752811077487,0.7501409,120350.0,120340.0,1.19163839]
[1752811077695,0.7501409,120350.0,120340.0,1.55243839]
[1752811084293,0.7501409,120350.0,120340.0,1.52262952]
[1752811089001,0.5840833,120350.0,120340.0,1.52262952]
[1752811089206,0.5839233,120350.0,120340.0,1.52262952]
[1752811090406,0.57532,120350.0,120340.0,1.52262952]
[1752811090702,0.166052,120360.0,120350.0,0.2707776]
[1752811091006,0.87462905,120360.0,120350.0,1.33733755]
[1752811091404,0.87462905,120360.0,120350.0,1.05757929]
[1752811092208,0.29934905,120360.0,120350.0,1.05757929]
[1752811092507,0.87562905,120360.0,120350.0,1.55757929]
[1752811096606,0.87562905,120360.0,120350.0,1.19677929]
[1752811096909,0.87562905,120360.0,120350.0,1.15203523]
[1752811097509,0.30034905,120360.0,120350.0,1.15203523]
[1752811097712,0.87554905,120360.0,120350.0,1.15203523]
[1752811098210,0.87554905,120360.0,120350.0,1.19677929]
[1752811098810,0.87554905,120360.0,120350.0,1.55757929]
[1752811099513,0.87550905,120360.0,120350.0,1.19677929]
[1752811099711,0.87550905,120360.0,120350.0,1.15203523]
[1752811102412,0.87550905,120360.0,120350.0,1.55757929]
[1752811102713,0.87550905,120360.0,120350.0,1.19677929]
[1752811103011,0.87550905,120360.0,120350.0,1.55757929]
[1752811104412,0.87542905,120360.0,120350.0,1.55757929]
[1752811105514,0.87542905,120360.0,120350.0,1.51283523]
[1752811105917,0.87542905,120360.0,120350.0,1.15203523]
[1752811106216,0.87542905,120360.0,120350.0,1.51283523]
[1752811108217,0.87542905,120360.0,120350.0,1.15203523]
[1752811108517,0.87542905,120360.0,120350.0,1.51283523]
[1752811111017,0.87542905,120360.0,120350.0,1.23307697]
[1752811111220,0.87542905,120360.0,120350.0,1.51283523]
[1752811113720,0.87542905,120360.0,120350.0,1.12220586]
[1752811115416,1.15518731,120360.0,120350.0,1.12220586]
[1752811115622,0.58010731,120360.0,120350.0,1.12220586]
[1752811115822,1.15498731,120360.0,120350.0,1.12220586]
[1752811116520,0.87522905,120360.0,120350.0,1.12220586]
[1752811118926,0.70917705,120360.0,120350.0,1.12220586]
[1752811119121,0.70917705,120360.0,120350.0,1.51283523]
[1752811119122,0.70913705,120360.0,120350.0,1.51283523]
[1752811119427,0.87518085,120360.0,120350.0,1.51283523]
[1752811119725,0.30034085,120360.0,120350.0,1.51283523]
[1752811119927,0.87518085,120360.0,120350.0,1.23307697]
[1752811120128,0.87518085,120360.0,120350.0,1.51283523]
[1752811121531,0.87518085,120360.0,120350.0,1.15203523]
[1752811127436,1.23598085,120360.0,120350.0,1.15203523]
[1752811127636,0.87518085,120360.0,120350.0,1.15203523]
[1752811128036,1.15493911,120360.0,120350.0,1.15203523]
[1752811129531,0.87518085,120360.0,120350.0,1.15203523]
[1752811129932,0.87518085,120360.0,120350.0,0.87227697]
[1752811130137,0.66114085,120360.0,120350.0,0.70621937]
[1752811130333,1.69052337,120360.0,120350.0,0.36558732]
[1752811130539,0.1769314,120340.0,120330.0,0.00386786]
[1752811130734,2.23323087,120340.0,120330.0,0.00386786]
[1752811131038,0.1855452,120330.0,120320.0,0.04474406]
[1752811131238,2.25498172,120330.0,120320.0,0.04474406]
[1752811131439,0.174439,120320.0,120310.0,0.07400406]
[1752811131642,1.40079726,120320.0,120310.0,0.07400406]
[1752811131833,1.52540836,120320.0,120310.0,0.02926]
[1752811132034,1.52540836,120320.0,120310.0,0.1953728]
[1752811132442,1.52540836,120320.0,120310.0,0.2840928]
[1752811132742,1.52540836,120320.0,120310.0,0.3021128]
[1752811133039,1.49440778,120320.0,120310.0,0.3021128]
[1752811133437,1.49440778,120320.0,120310.0,0.8021128]
[1752811134035,1.2456501,120320.0,120310.0,0.8021128]
[1752811134632,1.2456501,120320.0,120310.0,0.8409628]
[1752811137744,1.2455701,120320.0,120310.0,0.8409628]
[1752811139945,1.2455701,120320.0,120310.0,0.8409628]
[1752811142646,1.2455701,120320.0,120310.0,0.67485]
[1752811142942,1.51316814,120320.0,120310.0,0.58872]
[1752811145343,1.15236814,120320.0,120310.0,0.08872]
[1752811145546,1.87396814,120320.0,120310.0,0.08872]
[1752811147950,1.87396814,120320.0,120310.0,0.08872]
[1752811148652,1.29936814,120320.0,120310.0,0.2548328]
[1752811148850,1.87388814,120320.0,120310.0,0.2548328]
[1752811149148,1.87388814,120320.0,120310.0,0.08872]
[1752811152454,1.29936814,120320.0,120310.0,0.08872]
[1752811152654,1.87384814,120320.0,120310.0,0.08872]
[1752811153654,1.29936814,120320.0,120310.0,0.08872]
[1752811153856,1.87384814,120320.0,120310.0,0.08872]
[1752811156665,1.87384814,120320.0,120310.0,0.10674]
[1752811157553,1.87380814,120320.0,120310.0,0.10674]
[1752811158265,1.88308814,120320.0,120310.0,0.10674]
[1752811158461,1.89117814,120320.0,120310.0,0.10674]
[1752811158962,1.64242046,120320.0,120310.0,0.10674]
[1752811159164,1.89117814,120320.0,120310.0,0.10674]
[1752811159662,1.89113814,120320.0,120310.0,0.10674]
[1752811159962,1.89109814,120320.0,120310.0,0.3457328]
[1752811160158,1.64234046,120320.0,120310.0,0.3457328]
[1752811160359,1.89109814,120320.0,120310.0,0.3457328]
[1752811164367,1.89109814,120320.0,120310.0,0.17962]
[1752811164572,1.89109814,120320.0,120310.0,0.3457328]
[1752811164762,1.89109814,120320.0,120310.0,0.17962]
[1752811164963,1.92219818,120320.0,120310.0,0.3457328]
[1752811167369,1.92319818,120320.0,120310.0,0.3457328]
[1752811167667,1.92419818,120320.0,120310.0,0.17962]
[1752811167869,1.92419818,120320.0,120310.0,0.45947772]
[1752811168769,1.92419818,120320.0,120310.0,0.17962]
[1752811171870,1.34983818,120320.0,120310.0,0.3457328]
[1752811172066,1.92399818,120320.0,120310.0,0.17962]
[1752811176776,1.34983818,120320.0,120310.0,0.17962]
[1752811176978,1.92391818,120320.0,120310.0,0.17962]
[1752811177172,1.64406046,120320.0,120310.0,0.3457328]
[1752811177371,1.92391818,120320.0,120310.0,0.3457328]
[1752811177869,1.92391818,120320.0,120310.0,0.17962]
[1752811178076,1.92391818,120320.0,120310.0,0.3457328]
[1752811178378,1.92391818,120320.0,120310.0,0.17962]
[1752811179777,3.07351818,120320.0,120310.0,0.17962]